[Event "*** Titled Tuesday Blitz"]
[Site "Chess.com"]
[Date "2021.02.16"]
[Round "8"]
[White "IsaacWiebe"]
[Black "TC2304"]
[Result "0-1"]
[WhiteElo "2227"]
[BlackElo "2362"]
[TimeControl "180+1"]
[EndTime "11:29:59 PST"]
[Termination "TC2304 won on time"]

1. e4 {[%clk 0:03:00.9]} 1... c5 {[%clk 0:03:00.4]} 2. Nf3 {[%clk 0:02:59.9]}
2... d6 {[%clk 0:03:00.8]} 3. d4 {[%clk 0:03:00.2]} 3... cxd4 {[%clk 0:03:01.7]}
4. Nxd4 {[%clk 0:03:00.9]} 4... Nf6 {[%clk 0:03:02.4]} 5. Nc3 {[%clk 0:03:01.4]}
5... a6 {[%clk 0:03:03.2]} 6. Bg5 {[%clk 0:02:59.8]} 6... e6 {[%clk 0:03:03.6]}
7. f4 {[%clk 0:02:57.6]} 7... Nbd7 {[%clk 0:03:03.9]} 8. Qf3 {[%clk 0:02:57.1]}
8... Qc7 {[%clk 0:03:04.7]} 9. O-O-O {[%clk 0:02:56.9]} 9... b5 {[%clk
0:03:05.4]} 10. f5 {[%clk 0:01:12]} 10... e5 {[%clk 0:03:02.6]} 11. Bxf6 {[%clk
0:01:01.6]} 11... Nxf6 {[%clk 0:02:55.4]} 12. Nde2 {[%clk 0:00:38.6]} 12... b4
{[%clk 0:02:47]} 13. Nd5 {[%clk 0:00:38.2]} 13... Nxd5 {[%clk 0:02:46.3]} 14.
Rxd5 {[%clk 0:00:39.1]} 14... Bb7 {[%clk 0:02:40.9]} 15. Rd1 {[%clk 0:00:39.1]}
15... Rc8 {[%clk 0:02:39.1]} 16. Qd3 {[%clk 0:00:35.1]} 16... Bc6 {[%clk
0:02:29.5]} 17. Kb1 {[%clk 0:00:32.2]} 17... Bb5 {[%clk 0:02:18.4]} 18. Qd2
{[%clk 0:00:32]} 18... a5 {[%clk 0:02:02.7]} 19. Nc1 {[%clk 0:00:30.3]} 19...
Bc4 {[%clk 0:01:58.6]} 20. Bxc4 {[%clk 0:00:29.8]} 20... Qxc4 {[%clk 0:01:59.5]}
21. Rhe1 {[%clk 0:00:27.9]} 21... Be7 {[%clk 0:01:57.2]} 22. Qd3 {[%clk
0:00:19.3]} 22... Qc6 {[%clk 0:01:49.4]} 23. Nb3 {[%clk 0:00:19.3]} 23... a4
{[%clk 0:01:48.3]} 24. Na5 {[%clk 0:00:19.4]} 24... Qb6 {[%clk 0:01:15.1]} 25.
Nc4 {[%clk 0:00:19.3]} 25... Qc6 {[%clk 0:01:10.6]} 26. Ne3 {[%clk 0:00:19.6]}
26... O-O {[%clk 0:01:04.8]} 27. Nd5 {[%clk 0:00:19.9]} 27... Bg5 {[%clk
0:01:01.2]} 28. Nxb4 {[%clk 0:00:19.4]} 28... Qb7 {[%clk 0:00:49.2]} 29. Nd5
{[%clk 0:00:18.4]} 29... Rc5 {[%clk 0:00:35.5]} 30. b3 {[%clk 0:00:17.9]} 30...
Rfc8 {[%clk 0:00:32.1]} 31. c4 {[%clk 0:00:16.6]} 31... Rb8 {[%clk 0:00:24.1]}
32. Kb2 {[%clk 0:00:15.7]} 32... Bd8 {[%clk 0:00:20]} 33. b4 {[%clk 0:00:14.2]}
33... a3+ {[%clk 0:00:19.4]} 34. Ka1 {[%clk 0:00:10.2]} 34... Rbc8 {[%clk
0:00:15.7]} 35. Rc1 {[%clk 0:00:08.3]} 35... R5c6 {[%clk 0:00:15.8]} 36. Rc2
{[%clk 0:00:03.5]} 36... Ra6 {[%clk 0:00:15.9]} 37. Rb1 {[%clk 0:00:03.5]} 37...
Ra4 {[%clk 0:00:16.2]} 38. Qb3 {[%clk 0:00:03]} 38... Qa7 {[%clk 0:00:14.6]} 39.
b5 {[%clk 0:00:02.9]} 39... Bh4 {[%clk 0:00:08.5]} 40. b6 {[%clk 0:00:02.2]}
40... Qa6 {[%clk 0:00:07.2]} 41. b7 {[%clk 0:00:01]} 41... Rb8 {[%clk
0:00:07.4]} 0-1

[Event "*** Titled Tuesday Blitz"]
[Site "Chess.com"]
[Date "2021.02.16"]
[Round "8"]
[White "Sjakkerntobi"]
[Black "AlexSuv"]
[Result "0-1"]
[WhiteElo "2315"]
[BlackElo "2446"]
[TimeControl "180+1"]
[EndTime "11:30:00 PST"]
[Termination "AlexSuv won on time"]

1. e4 {[%clk 0:03:00.9]} 1... c5 {[%clk 0:02:58.9]} 2. Nf3 {[%clk 0:03:00.9]}
2... e6 {[%clk 0:02:59.3]} 3. d4 {[%clk 0:03:01.8]} 3... cxd4 {[%clk 0:02:59.9]}
4. Nxd4 {[%clk 0:03:02.2]} 4... Nc6 {[%clk 0:03:00.6]} 5. Nc3 {[%clk 0:03:02.8]}
5... Qc7 {[%clk 0:03:01]} 6. Be3 {[%clk 0:03:03.3]} 6... a6 {[%clk 0:03:01.3]}
7. Qf3 {[%clk 0:03:01.4]} 7... Nf6 {[%clk 0:03:01.4]} 8. O-O-O {[%clk
0:02:59.7]} 8... Rb8 {[%clk 0:03:01.4]} 9. Be2 {[%clk 0:02:53.8]} 9... Bb4
{[%clk 0:03:00.2]} 10. Na4 {[%clk 0:01:45.4]} 10... b5 {[%clk 0:02:48.2]} 11.
Nxc6 {[%clk 0:01:42.6]} 11... Qxc6 {[%clk 0:02:49.1]} 12. e5 {[%clk 0:01:25.4]}
12... Nd5 {[%clk 0:02:37]} 13. Nc3 {[%clk 0:01:18.3]} 13... Bxc3 {[%clk
0:02:23.6]} 14. bxc3 {[%clk 0:01:16.8]} 14... Qxc3 {[%clk 0:02:24.5]} 15. Bd4
{[%clk 0:01:16]} 15... Qxf3 {[%clk 0:02:21.4]} 16. Bxf3 {[%clk 0:01:16.9]} 16...
Bb7 {[%clk 0:02:21.9]} 17. Bxd5 {[%clk 0:01:10.6]} 17... Bxd5 {[%clk 0:02:22.8]}
18. Bc5 {[%clk 0:01:11.2]} 18... Bxa2 {[%clk 0:02:16.1]} 19. Bd6 {[%clk
0:01:10.2]} 19... Rc8 {[%clk 0:02:15.3]} 20. Kb2 {[%clk 0:01:10]} 20... Bd5
{[%clk 0:02:15.2]} 21. Ra1 {[%clk 0:01:09.4]} 21... Bb7 {[%clk 0:02:04]} 22. f4
{[%clk 0:01:08.8]} 22... f6 {[%clk 0:02:01.8]} 23. Rhg1 {[%clk 0:01:05.5]} 23...
Kf7 {[%clk 0:02:00.6]} 24. g4 {[%clk 0:01:05]} 24... Rc4 {[%clk 0:01:57.5]} 25.
Raf1 {[%clk 0:00:59.7]} 25... Rhc8 {[%clk 0:01:55.6]} 26. Rf2 {[%clk 0:00:59.4]}
26... b4 {[%clk 0:01:54.6]} 27. g5 {[%clk 0:00:57.3]} 27... f5 {[%clk
0:01:51.6]} 28. h4 {[%clk 0:00:56.8]} 28... Be4 {[%clk 0:01:50.8]} 29. Rc1
{[%clk 0:00:53]} 29... Kg6 {[%clk 0:01:49.7]} 30. Rh2 {[%clk 0:00:43.6]} 30...
Kh5 {[%clk 0:01:42.1]} 31. Rd2 {[%clk 0:00:39]} 31... a5 {[%clk 0:01:41.9]} 32.
Rf2 {[%clk 0:00:36.1]} 32... a4 {[%clk 0:01:33.5]} 33. Rd2 {[%clk 0:00:34]}
33... a3+ {[%clk 0:01:33.2]} 34. Kb3 {[%clk 0:00:33.8]} 34... Bd5 {[%clk
0:01:33]} 35. Ka4 {[%clk 0:00:31.9]} 35... Ra8+ {[%clk 0:01:29.1]} 36. Kb5
{[%clk 0:00:31.7]} 36... a2 {[%clk 0:01:29.5]} 37. Ra1 {[%clk 0:00:28.5]} 37...
Rxf4 {[%clk 0:01:29.1]} 38. g6 {[%clk 0:00:22.5]} 38... hxg6 {[%clk 0:01:25.9]}
39. Rdd1 {[%clk 0:00:21.9]} 39... Rxh4 {[%clk 0:01:24.3]} 40. Rg1 {[%clk
0:00:20.8]} 40... g5 {[%clk 0:01:09.5]} 41. Be7 {[%clk 0:00:20.2]} 41... Rg4
{[%clk 0:01:09]} 42. Rge1 {[%clk 0:00:12.8]} 42... Kg6 {[%clk 0:01:08.2]} 43.
Bd6 {[%clk 0:00:10.2]} 43... Rc8 {[%clk 0:01:06.8]} 44. Re3 {[%clk 0:00:07.4]}
44... Rxc2 {[%clk 0:01:05.8]} 45. Bxb4 {[%clk 0:00:07.4]} 45... Rb2 {[%clk
0:01:05.7]} 46. Kc5 {[%clk 0:00:05.8]} 46... Rbxb4 {[%clk 0:01:05.5]} 47. Kd6
{[%clk 0:00:06.7]} 47... Rb1 {[%clk 0:01:04.1]} 48. Rxa2 {[%clk 0:00:07.3]}
48... Bxa2 {[%clk 0:01:03.6]} 49. Rc3 {[%clk 0:00:07.3]} 49... Bd5 {[%clk
0:01:02.2]} 50. Ke7 {[%clk 0:00:07.3]} 50... Rc4 {[%clk 0:01:02.1]} 51. Rh3
{[%clk 0:00:06]} 51... g4 {[%clk 0:01:02.2]} 52. Rh2 {[%clk 0:00:05.4]} 52... g3
{[%clk 0:01:02.5]} 53. Rh3 {[%clk 0:00:05.1]} 53... g2 {[%clk 0:01:02.6]} 54.
Rg3+ {[%clk 0:00:05.7]} 54... Rg4 {[%clk 0:01:02]} 55. Rh3 {[%clk 0:00:03.3]}
55... g1=Q {[%clk 0:01:02.2]} 56. Kf8 {[%clk 0:00:04.2]} 56... Qc5+ {[%clk
0:01:01.7]} 57. Ke8 {[%clk 0:00:03.9]} 57... Qc8+ {[%clk 0:01:01.6]} 58. Ke7
{[%clk 0:00:04.8]} 58... Qc5+ {[%clk 0:01:00.5]} 59. Kd8 {[%clk 0:00:04.4]}
59... Rb8+ {[%clk 0:01:01]} 60. Kxd7 {[%clk 0:00:02.6]} 60... Rb7+ {[%clk
0:01:00]} 61. Kd8 {[%clk 0:00:01.4]} 61... Qe7+ {[%clk 0:01:00.2]} 0-1

[Event "*** Titled Tuesday Blitz"]
[Site "Chess.com"]
[Date "2021.02.16"]
[Round "8"]
[White "swisspower96"]
[Black "A-Fier"]
[Result "1-0"]
[WhiteElo "2651"]
[BlackElo "2791"]
[TimeControl "180+1"]
[EndTime "11:30:01 PST"]
[Termination "swisspower96 won by resignation"]

1. d4 {[%clk 0:03:00.9]} 1... Nf6 {[%clk 0:02:59.9]} 2. c4 {[%clk 0:03:01.1]}
2... c5 {[%clk 0:03:00.3]} 3. d5 {[%clk 0:03:01.1]} 3... e6 {[%clk 0:03:00.8]}
4. Nc3 {[%clk 0:03:00.9]} 4... exd5 {[%clk 0:03:01.4]} 5. cxd5 {[%clk
0:03:01.8]} 5... d6 {[%clk 0:03:01.9]} 6. Nf3 {[%clk 0:03:02.6]} 6... g6 {[%clk
0:03:02.3]} 7. Bf4 {[%clk 0:03:01.6]} 7... Bg7 {[%clk 0:03:02.3]} 8. Qa4+ {[%clk
0:02:59.8]} 8... Bd7 {[%clk 0:03:01.8]} 9. Qb3 {[%clk 0:02:59.2]} 9... Qc7
{[%clk 0:03:02.3]} 10. e4 {[%clk 0:02:36.8]} 10... O-O {[%clk 0:03:00]} 11. Nd2
{[%clk 0:02:32.6]} 11... Nh5 {[%clk 0:02:48.7]} 12. Be3 {[%clk 0:02:32.6]} 12...
f5 {[%clk 0:02:49.1]} 13. exf5 {[%clk 0:02:32.9]} 13... gxf5 {[%clk 0:02:47.7]}
14. Be2 {[%clk 0:02:31.4]} 14... f4 {[%clk 0:02:42]} 15. Bxc5 {[%clk 0:02:30]}
15... Qxc5 {[%clk 0:02:38.4]} 16. Bxh5 {[%clk 0:02:27]} 16... Na6 {[%clk
0:02:33.5]} 17. O-O {[%clk 0:02:14.4]} 17... b5 {[%clk 0:02:26.8]} 18. Nde4
{[%clk 0:02:05.2]} 18... Qb6 {[%clk 0:02:21.9]} 19. Ng5 {[%clk 0:01:55.6]} 19...
Nc5 {[%clk 0:02:19]} 20. Qd1 {[%clk 0:01:48.9]} 20... Rf5 {[%clk 0:02:16.4]} 21.
Ne6 {[%clk 0:01:38.3]} 21... Nxe6 {[%clk 0:02:09.6]} 22. dxe6 {[%clk 0:01:38.4]}
22... Bxe6 {[%clk 0:02:10.5]} 23. Bg4 {[%clk 0:01:39]} 23... Raf8 {[%clk
0:01:58.6]} 24. Re1 {[%clk 0:01:21.4]} 24... Be5 {[%clk 0:01:53.2]} 25. Nd5
{[%clk 0:01:12.3]} 25... Qb7 {[%clk 0:01:51.8]} 26. Bxf5 {[%clk 0:00:43.6]}
26... Rxf5 {[%clk 0:01:52.7]} 27. Qg4+ {[%clk 0:00:26.6]} 27... Kf7 {[%clk
0:01:37.9]} 28. Nc3 {[%clk 0:00:26]} 28... h6 {[%clk 0:01:36.1]} 29. Ne4 {[%clk
0:00:23.5]} 29... h5 {[%clk 0:01:22.1]} 30. Qh3 {[%clk 0:00:14.3]} 30... Kg6
{[%clk 0:01:20.9]} 31. Nxd6 {[%clk 0:00:13.1]} 31... Qd5 {[%clk 0:01:13.1]} 32.
Rad1 {[%clk 0:00:07.6]} 32... Qc5 {[%clk 0:00:58.9]} 33. Nxf5 {[%clk 0:00:06.2]}
33... Bxf5 {[%clk 0:00:59.8]} 34. Qa3 {[%clk 0:00:06.1]} 34... b4 {[%clk
0:00:59.5]} 35. Qa6+ {[%clk 0:00:05.7]} 35... Kg5 {[%clk 0:01:00.1]} 36. Qe2
{[%clk 0:00:05.7]} 36... Bf6 {[%clk 0:00:59.9]} 37. Qf3 {[%clk 0:00:04.5]} 37...
Qc4 {[%clk 0:00:59.3]} 38. Qd5 {[%clk 0:00:04.5]} 38... Qc2 {[%clk 0:00:58.8]}
39. Qg8+ {[%clk 0:00:04.6]} 39... Kh6 {[%clk 0:00:57.9]} 40. Rd6 {[%clk
0:00:04.7]} 40... Qxb2 {[%clk 0:00:57.1]} 41. Qf8+ {[%clk 0:00:05.2]} 41... Kg6
{[%clk 0:00:57.1]} 42. h4 {[%clk 0:00:05.7]} 42... Qc3 {[%clk 0:00:51.5]} 43.
Re7 {[%clk 0:00:04.6]} 43... Bg4 {[%clk 0:00:43.9]} 44. Rg7+ {[%clk 0:00:04.8]}
44... Kf5 {[%clk 0:00:44.4]} 45. Rf7 {[%clk 0:00:05.3]} 45... Bf3 {[%clk
0:00:35.6]} 46. Rfxf6+ {[%clk 0:00:05.2]} 46... Kg4 {[%clk 0:00:36.5]} 47. Qg7+
{[%clk 0:00:05.2]} 47... Kxh4 {[%clk 0:00:36.7]} 48. Rxf4+ {[%clk 0:00:03.2]}
48... Bg4 {[%clk 0:00:37.6]} 49. Rxg4+ {[%clk 0:00:03.5]} 49... hxg4 {[%clk
0:00:37.8]} 50. Qxc3 {[%clk 0:00:04.2]} 50... g3 {[%clk 0:00:38]} 51. Rc6 {[%clk
0:00:04.9]} 51... bxc3 {[%clk 0:00:38.1]} 52. fxg3+ {[%clk 0:00:04.6]} 52... Kg4
{[%clk 0:00:38.2]} 53. Rxc3 {[%clk 0:00:05.5]} 1-0

[Event "*** Titled Tuesday Blitz"]
[Site "Chess.com"]
[Date "2021.02.16"]
[Round "8"]
[White "DJojua"]
[Black "hypert"]
[Result "1-0"]
[WhiteElo "2744"]
[BlackElo "2509"]
[TimeControl "180+1"]
[EndTime "11:30:01 PST"]
[Termination "DJojua won by checkmate"]

1. d4 {[%clk 0:03:00.9]} 1... d5 {[%clk 0:03:00]} 2. Bf4 {[%clk 0:03:00.4]} 2...
c5 {[%clk 0:02:59.9]} 3. e3 {[%clk 0:03:00.8]} 3... Nc6 {[%clk 0:02:59.4]} 4.
Nf3 {[%clk 0:02:59.9]} 4... Nf6 {[%clk 0:02:58.4]} 5. c3 {[%clk 0:02:58.7]} 5...
Qb6 {[%clk 0:02:56.1]} 6. Qb3 {[%clk 0:02:56.9]} 6... c4 {[%clk 0:02:56.5]} 7.
Qc2 {[%clk 0:02:54.8]} 7... Bf5 {[%clk 0:02:56]} 8. Qc1 {[%clk 0:02:49.1]} 8...
e6 {[%clk 0:02:54]} 9. h3 {[%clk 0:02:49]} 9... h6 {[%clk 0:02:52.8]} 10. Be2
{[%clk 0:02:48.1]} 10... Be7 {[%clk 0:02:53]} 11. O-O {[%clk 0:02:46.3]} 11...
O-O {[%clk 0:02:53.4]} 12. Nbd2 {[%clk 0:02:46.3]} 12... Qd8 {[%clk 0:02:53.3]}
13. Ne5 {[%clk 0:02:42.1]} 13... Nxe5 {[%clk 0:02:49.9]} 14. Bxe5 {[%clk
0:02:42.3]} 14... b5 {[%clk 0:02:49.3]} 15. Bd1 {[%clk 0:02:41.6]} 15... a5
{[%clk 0:02:48.4]} 16. Bc2 {[%clk 0:02:33.5]} 16... Bxc2 {[%clk 0:02:39.1]} 17.
Qxc2 {[%clk 0:02:33.6]} 17... b4 {[%clk 0:02:39.6]} 18. Rfe1 {[%clk 0:02:33.4]}
18... Nd7 {[%clk 0:02:30.4]} 19. Bg3 {[%clk 0:02:31.3]} 19... f5 {[%clk
0:02:30.2]} 20. Nf3 {[%clk 0:01:53.2]} 20... Nf6 {[%clk 0:02:24.1]} 21. Ne5
{[%clk 0:01:52.7]} 21... Ne4 {[%clk 0:02:22.4]} 22. Bh2 {[%clk 0:01:51.5]} 22...
Bf6 {[%clk 0:02:10]} 23. f3 {[%clk 0:01:46.9]} 23... Bxe5 {[%clk 0:01:58.8]} 24.
Bxe5 {[%clk 0:01:44.4]} 24... Ng5 {[%clk 0:01:56.7]} 25. a3 {[%clk 0:01:29.7]}
25... Nf7 {[%clk 0:01:41.8]} 26. Bh2 {[%clk 0:01:23.4]} 26... Qb6 {[%clk
0:01:32.2]} 27. e4 {[%clk 0:01:16.7]} 27... fxe4 {[%clk 0:01:26.7]} 28. fxe4
{[%clk 0:01:15.8]} 28... Ng5 {[%clk 0:01:24.4]} 29. exd5 {[%clk 0:01:12.3]}
29... exd5 {[%clk 0:01:25.3]} 30. axb4 {[%clk 0:01:10.2]} 30... axb4 {[%clk
0:01:24.6]} 31. Rxa8 {[%clk 0:01:10]} 31... Rxa8 {[%clk 0:01:25.5]} 32. Qf5
{[%clk 0:01:09.9]} 32... Qb7 {[%clk 0:01:12.1]} 33. Rf1 {[%clk 0:00:57]} 33...
bxc3 {[%clk 0:01:05.3]} 34. bxc3 {[%clk 0:00:56.6]} 34... Re8 {[%clk 0:00:46]}
35. Be5 {[%clk 0:00:45.2]} 35... Ne4 {[%clk 0:00:43.5]} 36. Qg6 {[%clk
0:00:36.9]} 36... Re7 {[%clk 0:00:34.5]} 37. Kh2 {[%clk 0:00:18.9]} 37... Rf7
{[%clk 0:00:34.6]} 38. Ra1 {[%clk 0:00:11.9]} 38... Nxc3 {[%clk 0:00:30.6]} 39.
Ra6 {[%clk 0:00:11]} 39... Ne4 {[%clk 0:00:18.4]} 40. Rb6 {[%clk 0:00:11.1]}
40... Qd7 {[%clk 0:00:18.7]} 41. Rd6 {[%clk 0:00:10.9]} 41... Qe8 {[%clk
0:00:17.6]} 42. Bxg7 {[%clk 0:00:06.9]} 42... Nxd6 {[%clk 0:00:15.4]} 43. Bf6+
{[%clk 0:00:05.6]} 43... Kf8 {[%clk 0:00:11.1]} 44. Qxh6+ {[%clk 0:00:05.9]}
44... Kg8 {[%clk 0:00:10.6]} 45. Qh8# {[%clk 0:00:06.1]} 1-0

[Event "*** Titled Tuesday Blitz"]
[Site "Chess.com"]
[Date "2021.02.16"]
[Round "8"]
[White "ajdemipopushi"]
[Black "xberli"]
[Result "1-0"]
[WhiteElo "2376"]
[BlackElo "2487"]
[TimeControl "180+1"]
[EndTime "11:30:01 PST"]
[Termination "ajdemipopushi won on time"]

1. Nf3 {[%clk 0:03:00.9]} 1... g6 {[%clk 0:02:58.6]} 2. g3 {[%clk 0:03:00.9]}
2... b6 {[%clk 0:02:59]} 3. Bg2 {[%clk 0:03:01.2]} 3... Bb7 {[%clk 0:02:59.7]}
4. O-O {[%clk 0:03:01.9]} 4... Bg7 {[%clk 0:03:00.3]} 5. c4 {[%clk 0:03:02.4]}
5... Nf6 {[%clk 0:03:00.5]} 6. d4 {[%clk 0:03:02.4]} 6... O-O {[%clk 0:03:01]}
7. d5 {[%clk 0:03:02.6]} 7... c6 {[%clk 0:02:59.9]} 8. Nc3 {[%clk 0:03:02.7]}
8... cxd5 {[%clk 0:02:59.9]} 9. cxd5 {[%clk 0:03:02.6]} 9... d6 {[%clk
0:02:59.6]} 10. Nd4 {[%clk 0:02:45.5]} 10... Nbd7 {[%clk 0:02:52.6]} 11. Nc6
{[%clk 0:02:27.5]} 11... Qe8 {[%clk 0:02:50.7]} 12. Nb5 {[%clk 0:02:11.8]} 12...
Ne5 {[%clk 0:02:20.1]} 13. Nc7 {[%clk 0:02:08.2]} 13... Qd7 {[%clk 0:02:18.8]}
14. Nxa8 {[%clk 0:02:06.4]} 14... Bxa8 {[%clk 0:02:17.2]} 15. Nxe5 {[%clk
0:02:03]} 15... dxe5 {[%clk 0:02:18.1]} 16. e4 {[%clk 0:02:02.4]} 16... e6
{[%clk 0:02:12.8]} 17. dxe6 {[%clk 0:01:45]} 17... Qxe6 {[%clk 0:02:13.7]} 18.
h3 {[%clk 0:01:43.5]} 18... Bxe4 {[%clk 0:02:07.8]} 19. Qe2 {[%clk 0:01:24.7]}
19... Bxg2 {[%clk 0:01:51.7]} 20. Kxg2 {[%clk 0:01:24.7]} 20... Qc6+ {[%clk
0:01:50]} 21. Kh2 {[%clk 0:01:20.1]} 21... Nd7 {[%clk 0:01:32.7]} 22. Be3 {[%clk
0:01:17.8]} 22... Re8 {[%clk 0:01:29.8]} 23. Rac1 {[%clk 0:01:15.7]} 23... Qb7
{[%clk 0:01:22.1]} 24. Rfd1 {[%clk 0:01:13.4]} 24... Nf8 {[%clk 0:01:21.8]} 25.
Qb5 {[%clk 0:01:08.2]} 25... Rc8 {[%clk 0:01:16.4]} 26. Rxc8 {[%clk 0:00:58.8]}
26... Qxc8 {[%clk 0:01:17.3]} 27. Rc1 {[%clk 0:00:58.6]} 27... Qd8 {[%clk
0:01:14.2]} 28. Qc6 {[%clk 0:00:53.6]} 28... h5 {[%clk 0:01:05.1]} 29. Qc7
{[%clk 0:00:49.1]} 29... Qd5 {[%clk 0:01:00.6]} 30. Qxa7 {[%clk 0:00:43.2]}
30... h4 {[%clk 0:00:58.9]} 31. g4 {[%clk 0:00:30.2]} 31... b5 {[%clk
0:00:52.9]} 32. Qc5 {[%clk 0:00:24.7]} 32... Qxa2 {[%clk 0:00:42.9]} 33. Qxb5
{[%clk 0:00:22.7]} 33... e4 {[%clk 0:00:39.1]} 34. b4 {[%clk 0:00:19.9]} 34...
Ne6 {[%clk 0:00:30.7]} 35. Qc4 {[%clk 0:00:17.6]} 35... Qb2 {[%clk 0:00:19.5]}
36. Qxe4 {[%clk 0:00:14.2]} 36... Be5+ {[%clk 0:00:17.2]} 37. Kg2 {[%clk
0:00:13.7]} 37... Bd6 {[%clk 0:00:09.9]} 38. Rc6 {[%clk 0:00:12.4]} 38... Qxb4
{[%clk 0:00:03.5]} 39. Qxb4 {[%clk 0:00:10.7]} 39... Bxb4 {[%clk 0:00:04.4]} 40.
f4 {[%clk 0:00:09.5]} 40... Kg7 {[%clk 0:00:02]} 41. Kf3 {[%clk 0:00:08.5]}
41... Be7 {[%clk 0:00:01.1]} 42. f5 {[%clk 0:00:08.7]} 1-0

[Event "*** Titled Tuesday Blitz"]
[Site "Chess.com"]
[Date "2021.02.16"]
[Round "8"]
[White "korkmaz16"]
[Black "CraiggoryC"]
[Result "1-0"]
[WhiteElo "2383"]
[BlackElo "2213"]
[TimeControl "180+1"]
[EndTime "11:30:03 PST"]
[Termination "korkmaz16 won on time"]

1. e4 {[%clk 0:03:00.9]} 1... e6 {[%clk 0:03:00.1]} 2. d4 {[%clk 0:02:59.1]}
2... d5 {[%clk 0:03:00.7]} 3. e5 {[%clk 0:02:58.8]} 3... c5 {[%clk 0:03:00.4]}
4. c3 {[%clk 0:02:58.2]} 4... Qb6 {[%clk 0:03:00.7]} 5. Nf3 {[%clk 0:02:58.3]}
5... Nc6 {[%clk 0:03:01.2]} 6. Bd3 {[%clk 0:02:58.8]} 6... cxd4 {[%clk
0:03:01.1]} 7. cxd4 {[%clk 0:02:59.7]} 7... Bd7 {[%clk 0:03:01.7]} 8. O-O {[%clk
0:03:00.2]} 8... Nxd4 {[%clk 0:03:01.8]} 9. Nxd4 {[%clk 0:03:00.9]} 9... Qxd4
{[%clk 0:03:02.6]} 10. Nc3 {[%clk 0:03:01.5]} 10... a6 {[%clk 0:03:01.4]} 11.
Qe2 {[%clk 0:03:01.8]} 11... Ne7 {[%clk 0:02:53.3]} 12. Kh1 {[%clk 0:03:01.7]}
12... Nc6 {[%clk 0:02:51.8]} 13. f4 {[%clk 0:03:01.9]} 13... Nb4 {[%clk
0:02:42.7]} 14. Rd1 {[%clk 0:03:00.3]} 14... Nxd3 {[%clk 0:02:34.4]} 15. Rxd3
{[%clk 0:03:01.2]} 15... Qb6 {[%clk 0:02:17.9]} 16. Be3 {[%clk 0:02:59.4]} 16...
Bc5 {[%clk 0:02:16.8]} 17. Bxc5 {[%clk 0:02:57.7]} 17... Qxc5 {[%clk 0:02:17]}
18. f5 {[%clk 0:02:58.2]} 18... Rc8 {[%clk 0:02:08.1]} 19. f6 {[%clk 0:02:47.5]}
19... g6 {[%clk 0:02:02.6]} 20. Qd2 {[%clk 0:02:38.8]} 20... Bb5 {[%clk
0:01:49.9]} 21. Rd4 {[%clk 0:02:37]} 21... h5 {[%clk 0:01:37.1]} 22. Rd1 {[%clk
0:02:35.7]} 22... Kf8 {[%clk 0:00:36.6]} 23. h4 {[%clk 0:02:04.7]} 23... Kg8
{[%clk 0:00:31.7]} 24. Kh2 {[%clk 0:01:50.9]} 24... Kh7 {[%clk 0:00:31.2]} 25.
g4 {[%clk 0:01:49.5]} 25... hxg4 {[%clk 0:00:24.6]} 26. Rg1 {[%clk 0:01:47.3]}
26... Qc7 {[%clk 0:00:19.1]} 27. Qg5 {[%clk 0:01:44.2]} 27... Kg8 {[%clk
0:00:17.4]} 28. Rgxg4 {[%clk 0:01:37.9]} 28... Kf8 {[%clk 0:00:17.5]} 29. Qf4
{[%clk 0:01:31.2]} 29... Rh5 {[%clk 0:00:16.3]} 30. Rg5 {[%clk 0:01:31]} 30...
Rxg5 {[%clk 0:00:13.6]} 31. Qxg5 {[%clk 0:01:14.3]} 31... Ke8 {[%clk 0:00:13.8]}
32. a4 {[%clk 0:01:05.6]} 32... Bc6 {[%clk 0:00:12.8]} 33. b4 {[%clk 0:00:55.1]}
33... Qb6 {[%clk 0:00:12.9]} 34. Qe3 {[%clk 0:00:45.3]} 34... Bd7 {[%clk
0:00:12.2]} 35. h5 {[%clk 0:00:42.1]} 35... Rc4 {[%clk 0:00:10.8]} 36. Ne2
{[%clk 0:00:40.7]} 36... Rxd4 {[%clk 0:00:10.3]} 37. Qxd4 {[%clk 0:00:30.7]}
37... Qxd4 {[%clk 0:00:09.9]} 38. Nxd4 {[%clk 0:00:31.6]} 38... gxh5 {[%clk
0:00:10.4]} 39. b5 {[%clk 0:00:30.4]} 39... axb5 {[%clk 0:00:11.3]} 40. axb5
{[%clk 0:00:29.7]} 40... Kd8 {[%clk 0:00:11.7]} 41. Kg3 {[%clk 0:00:30.1]} 41...
Kc7 {[%clk 0:00:11.9]} 42. Kh4 {[%clk 0:00:30]} 42... Kb6 {[%clk 0:00:12]} 43.
Kxh5 {[%clk 0:00:30.6]} 43... Kc5 {[%clk 0:00:11.2]} 44. Ne2 {[%clk 0:00:29.5]}
44... Kxb5 {[%clk 0:00:09.9]} 45. Kh6 {[%clk 0:00:29.4]} 45... Kc4 {[%clk
0:00:10]} 46. Kg7 {[%clk 0:00:29.9]} 46... Be8 {[%clk 0:00:09.3]} 47. Kf8 {[%clk
0:00:30.2]} 47... Ba4 {[%clk 0:00:08.6]} 48. Kxf7 {[%clk 0:00:30.1]} 48... d4
{[%clk 0:00:08.9]} 49. Ke7 {[%clk 0:00:29.1]} 49... d3 {[%clk 0:00:07.4]} 50.
Ng3 {[%clk 0:00:23.5]} 50... d2 {[%clk 0:00:07]} 51. Nf1 {[%clk 0:00:24]} 51...
Kd3 {[%clk 0:00:01.4]} 52. Nxd2 {[%clk 0:00:23.9]} 1-0